bitfinex-derivatives/quotes_BNBF0:USTF0_20250130
["timestamp","ask_amount","ask_price","bid_price","bid_amount"]
[1738242934469,0.83770491,682.32,678.38,0.25627194]
[1738242934671,0.83770491,682.31,678.38,0.25627194]
[1738242934874,0.83770491,682.3,678.38,0.25627194]
[1738242935070,0.27042694,682.29,678.38,0.25627194]
[1738242935278,1.09998263,680.01,678.38,0.25627194]
[1738242937374,1.09998263,680.01,678.37,0.29482435]
[1738242937375,1.09998263,680.01,678.39,0.25600296]
[1738242937576,1.09998263,680.01,678.38,0.25600296]
[1738242937776,1.09998263,680.01,678.39,0.25600296]
[1738242937977,1.09998263,680.01,678.38,0.25600296]
[1738242938178,1.09998263,680.27,678.38,0.25600296]
[1738242938479,0.27043255,680.26,678.38,0.25600296]
[1738242938979,1.09998263,680.27,678.37,0.29482435]
[1738242939174,0.27042831,680.26,678.38,0.25597652]
[1738242940677,0.27042831,680.26,678.4,0.29481132]
[1738242940877,0.27042831,680.26,678.41,0.25597652]
[1738242941281,0.27042831,680.26,678.43,0.29479828]
[1738242941581,0.27042831,680.26,678.44,0.25597652]
[1738242942381,0.27042831,680.25,678.44,0.25597652]
[1738242942576,0.27042831,680.27,678.46,0.29478524]
[1738242942780,0.27042831,680.26,678.47,0.25597652]
[1738242943080,0.27042831,680.27,678.47,0.25597652]
[1738242943280,0.27042831,680.26,678.47,0.25597652]
[1738242943475,0.27042831,680.27,678.49,0.29477221]
[1738242943675,0.27042831,680.27,678.5,0.25597652]
[1738242944183,1.09998263,680.22,678.52,0.29475918]
[1738242944384,0.27042831,680.21,678.53,0.25597652]
[1738242947690,1.09998263,680.15,678.53,0.25597652]
[1738242947889,0.27042831,680.14,678.53,0.25597652]
[1738242950394,1.09998263,679.98,678.53,0.25597652]
[1738242950589,0.27042831,679.97,678.53,0.25597652]
[1738242951490,0.27042831,679.97,678.54,0.29475049]
[1738242951698,0.27042831,679.97,678.55,0.25597652]
[1738242953197,1.09998263,679.98,678.56,0.2947418]
[1738242953393,0.27051095,679.97,678.57,0.25607769]
[1738242953797,1.09998263,679.98,678.56,0.2947418]
[1738242953995,1.09998263,679.97,678.56,0.2947418]
[1738242955602,1.09998263,679.97,678.57,0.25580507]
[1738242956102,1.09998263,680.42,678.57,0.25580507]
[1738242956300,0.27041807,680.41,678.57,0.25580507]
[1738242957802,0.27041807,680.41,678.56,0.2947418]
[1738242957803,1.09998263,680.42,678.56,0.2947418]
[1738242959105,1.09998263,680.41,678.56,0.2947418]
[1738242960601,1.09998263,680.41,678.57,0.25582072]
[1738242961006,0.27041992,680.4,678.57,0.25582072]
[1738242962210,0.27041992,680.43,678.57,0.25582072]
[1738242962403,0.27041992,680.43,678.59,0.29472877]
[1738242962605,0.27041992,680.43,678.6,0.25582072]
[1738242964811,1.09998263,680.22,678.6,0.25582072]
[1738242965012,1.09998263,680.22,678.59,0.29472877]
[1738242965311,0.2704193,680.21,678.6,0.25581966]
[1738242967713,1.09998263,680.04,678.6,0.25581966]
[1738242970310,1.09998263,680.04,678.62,0.29471574]
[1738242970508,1.09998263,680.04,678.63,0.25581966]
[1738242971009,1.09998263,680.04,678.65,0.29470271]
[1738242971210,1.09998263,680.04,678.66,0.25581966]
[1738242972321,1.09998263,680.04,678.68,0.29468969]
[1738242972518,1.09998263,680.07,678.69,0.25581966]
[1738242972813,1.09998263,680.07,678.7,0.294681]
[1738242973009,1.09998263,680.07,678.71,0.25581966]
[1738242973214,1.09998263,680.07,678.72,0.29467232]
[1738242973413,1.09998263,680.07,678.73,0.25581966]
[1738242973613,1.09998263,680.07,678.72,0.29467232]
[1738242973815,1.09998263,680.07,678.73,0.25588296]
[1738242974116,1.09998263,680.07,678.74,0.29466364]
[1738242974315,1.09998263,680.07,678.75,0.25588296]
[1738242974514,1.09998263,680.07,678.76,0.29465495]
[1738242974716,1.09998263,680.07,678.77,0.25588296]
[1738242974916,1.09998263,680.07,678.78,0.29464627]
[1738242975216,1.09998263,680.07,678.79,0.25588296]
[1738242975417,1.09998263,680.07,678.8,0.55049621]
[1738242975616,1.09998263,680.17,678.81,0.55049187]
[1738242975817,0.27041224,680.16,678.82,0.55048753]
[1738242976010,1.09998263,680.17,678.83,0.25585862]
[1738242978114,1.09998263,680.17,678.84,0.29462023]
[1738242978313,1.09998263,680.17,678.85,0.25585862]
[1738242978517,1.09998263,680.18,678.85,0.25585862]
[1738242978910,1.09998263,680.18,678.84,0.29462023]
[1738242979116,0.2704122,680.17,678.85,0.25581748]
[1738242979315,0.2704122,680.17,678.86,0.29461155]
[1738242979516,0.2704122,680.17,678.87,0.25581748]
[1738242979722,0.2704122,680.17,678.88,0.29460287]
[1738242979917,0.2704122,680.17,678.89,0.25581748]
[1738242980117,0.2704122,680.17,678.88,0.29460287]
[1738242980320,0.2704122,680.17,678.89,0.25582378]
[1738242980516,0.2704122,680.17,678.9,0.29459419]
[1738242980717,0.2704122,680.17,678.91,0.25582378]
[1738242981021,1.09998263,680.18,678.92,0.29458551]
[1738242981526,1.09998263,680.16,678.92,0.29458551]
[1738242985229,1.09998263,680.36,678.92,0.29458551]
[1738242985429,0.29396634,680.35,678.92,0.29458551]
[1738242988633,1.09998263,680.29,678.92,0.29458551]
[1738242990431,0.27041718,680.28,678.92,0.29458551]
[1738242991933,1.09998263,680.16,678.92,0.29458551]
[1738242997230,1.09998263,680.16,678.93,0.25568643]
[1738242997533,1.09998263,680.16,678.94,0.29457684]
[1738242997729,1.09998263,680.16,678.95,0.25568643]
[1738242997934,1.09998263,680.16,678.96,0.29456816]
[1738242998429,1.09998263,680.16,678.97,0.25567084]
[1738242998633,1.09998263,680.16,678.98,0.29455948]
[1738242998833,1.09998263,680.16,678.99,0.25567084]
[1738242999035,1.09998263,680.16,679.0,0.29455081]
[1738242999337,1.09998263,680.16,679.01,0.25567084]
[1738242999941,1.09998263,680.08,679.01,0.25567084]
[1738243002742,1.09998263,680.05,679.01,0.25567084]
[1738243005247,1.09998263,680.05,679.0,0.29455081]
[1738243005747,1.09998263,680.07,679.0,0.29455081]
[1738243008852,1.09998263,680.18,679.0,0.29455081]
[1738243013160,1.09998263,680.18,679.01,0.25553476]
[1738243013459,1.09998263,680.18,679.02,0.29454213]
[1738243013656,1.09998263,680.18,679.03,0.25553476]
[1738243014155,1.09998263,680.18,679.04,0.29453345]
[1738243014355,1.09998263,680.18,679.05,0.25553476]
[1738243014555,1.09998263,680.18,679.05,0.55006388]
[1738243014758,1.09998263,680.18,679.06,0.25553476]
[1738243014959,1.09998263,680.18,679.07,0.29452044]
[1738243015158,1.09998263,680.18,679.08,0.25553476]
[1738243015456,1.09998263,680.18,679.09,0.29451177]
[1738243015661,1.09998263,680.18,679.1,0.25553476]
[1738243015862,1.09998263,680.18,679.11,0.29450309]
[1738243016055,1.09998263,680.18,679.12,0.25553476]
[1738243016259,1.09998263,680.15,679.12,0.25553476]
[1738243017260,1.09998263,680.15,679.11,0.29450309]
[1738243017460,1.09998263,680.15,679.12,0.25552387]
[1738243018964,1.09998263,680.15,679.11,0.29450309]
[1738243019165,1.09998263,680.15,679.12,0.25552582]
[1738243020265,1.09998263,680.16,679.12,0.25552582]
[1738243021866,1.09998263,680.16,679.11,0.29450309]
[1738243022067,1.09998263,680.16,679.12,0.25552892]
[1738243022961,1.09998263,680.2,679.12,0.25552892]
[1738243024765,1.09998263,680.2,679.11,0.29450309]
[1738243025664,1.09998263,680.2,679.12,0.25552223]
[1738243025869,1.09998263,680.18,679.12,0.25552223]
[1738243026070,1.09998263,680.18,679.11,0.29450309]
[1738243029376,1.09998263,680.22,679.11,0.29450309]
[1738243031878,1.09998263,680.19,679.11,0.29450309]
[1738243035076,0.29396634,680.35,679.11,0.29450309]
[1738243043173,0.29396634,680.35,679.12,0.25534929]
[1738243043577,0.28840043,680.35,679.12,0.25534929]
[1738243044485,1.09998263,680.26,679.13,0.29449442]
[1738243044679,1.09998263,680.26,679.14,0.25534929]
[1738243044879,1.09998263,680.26,679.14,0.54983938]
[1738243045084,1.09998263,680.26,679.15,0.25534929]
[1738243045577,1.09998263,680.26,679.14,0.29449009]
[1738243047985,1.09998263,680.28,679.14,0.29449009]
[1738243048679,1.09998263,680.28,679.14,0.28055492]
[1738243050485,1.09998263,680.32,679.14,0.28055492]
[1738243053390,0.28840043,680.35,679.14,0.28055492]
[1738243055290,0.27036074,680.34,679.14,0.28055492]
[1738243055490,0.28840043,680.35,679.14,0.28055492]
[1738243056090,1.09998263,680.29,679.14,0.28055492]
[1738243059192,1.09998263,680.24,679.14,0.28055492]
[1738243061989,1.09998263,680.28,679.14,0.28055492]
[1738243065690,0.27036983,680.27,679.14,0.28055492]
[1738243067596,1.09998263,680.19,679.14,0.28055492]
[1738243069098,1.09998263,680.19,679.15,0.25575329]
[1738243070395,1.09998263,680.19,679.14,0.28055492]
[1738243070594,1.09998263,680.19,679.15,0.25576322]
[1738243070799,1.09998263,680.22,679.15,0.25576322]
[1738243070992,1.09998263,680.22,679.14,0.28055492]
[1738243073395,0.28840043,680.35,679.14,0.28055492]
[1738243073396,1.09998263,680.23,679.14,0.28055492]
[1738243076406,0.28840043,680.35,679.14,0.28055492]
[1738243083615,0.28840043,680.35,679.15,0.25568489]
[1738243085609,1.09998263,680.34,679.16,0.29448141]
[1738243085810,1.09998263,680.34,679.17,0.25568489]
[1738243086010,1.09998263,680.34,679.18,0.29447274]
[1738243087914,0.28840043,680.35,679.18,0.29447274]
[1738243096220,0.28840043,680.35,679.19,0.25564561]
[1738243096522,0.28840043,680.35,679.18,0.29447274]
[1738243097022,0.28840043,680.35,679.19,0.25564642]
[1738243098016,0.28840043,680.35,679.2,0.29446407]
[1738243098821,0.28840043,680.35,679.21,0.25565264]
[1738243100422,1.09998263,680.32,679.21,0.25565264]
[1738243102124,1.09998263,680.32,679.2,0.29446407]
[1738243102727,1.09998263,680.3,679.2,0.29446407]
[1738243105925,1.09998263,680.26,679.2,0.29446407]
[1738243112026,0.27039866,680.25,679.2,0.29446407]
[1738243112430,1.09998263,680.21,679.2,0.29446407]
[1738243112630,0.27039866,680.2,679.2,0.29446407]
[1738243112930,1.09998263,680.21,679.2,0.29446407]
[1738243113131,0.2703907,680.2,679.2,0.29446407]
[1738243115434,1.09998263,680.13,679.2,0.29446407]
[1738243115833,0.27037047,680.12,679.2,0.29446407]
[1738243116032,1.09998263,680.13,679.2,0.29446407]
[1738243117433,1.09998263,680.16,679.2,0.29446407]
[1738243120139,1.09998263,680.25,679.2,0.29446407]
[1738243122735,1.09998263,680.28,679.2,0.29446407]
[1738243126742,0.27037466,680.27,679.2,0.29446407]
[1738243127838,1.09998263,680.28,679.2,0.29446407]
[1738243128041,0.2703761,680.27,679.2,0.29446407]
[1738243128745,1.09998263,680.25,679.2,0.29446407]
[1738243128938,0.2703761,680.24,679.2,0.29446407]
[1738243131242,1.09998263,680.25,679.2,0.29446407]
[1738243131443,0.27037595,680.24,679.2,0.29446407]
[1738243131640,1.09998263,680.16,679.2,0.29446407]
[1738243135345,1.09998263,680.17,679.2,0.29446407]
[1738243138749,1.09998263,680.21,679.2,0.29446407]
[1738243141349,1.09998263,680.16,679.2,0.29446407]
[1738243144149,1.09998263,680.1,679.2,0.29446407]
[1738243149755,1.09998263,680.07,679.2,0.29446407]
[1738243150553,1.09998263,680.07,678.42,1.09477182]
[1738243150756,1.09998263,680.07,678.43,0.25603003]
[1738243150957,1.09998263,680.07,678.45,0.29478959]
[1738243151154,1.09998263,680.07,678.46,0.25603003]
[1738243152452,1.09998263,680.07,678.45,0.29478959]
[1738243152658,0.27045046,680.06,678.46,0.25610772]
[1738243153157,0.27045046,680.1,678.46,0.25610772]
[1738243155259,0.27045046,680.1,678.47,1.53651994]
[1738243155461,0.27045046,680.1,678.48,0.25610772]
[1738243156058,0.27045407,680.09,678.49,0.25615609]
[1738243156261,0.27045407,680.1,678.48,0.25615609]
[1738243156560,1.09998263,680.11,678.49,0.25615609]
[1738243156761,1.09998263,680.11,678.48,0.25615609]
[1738243156959,1.09998263,680.11,678.49,0.25615609]
[1738243157160,1.09998263,680.11,678.48,0.25615609]
[1738243157356,1.09998263,680.11,678.49,0.25615609]
[1738243157759,1.09998263,680.11,678.5,0.25615609]
[1738243157960,0.28840043,680.35,678.47,1.53651994]
[1738243157961,1.09998263,680.07,678.48,0.25615609]
[1738243158160,1.09998263,680.07,678.49,0.25615609]
[1738243158358,1.09998263,680.07,678.48,0.25615609]
[1738243158660,1.09998263,680.07,678.49,0.25615609]
[1738243158854,1.09998263,680.07,678.5,0.25615609]
[1738243159060,1.09998263,680.07,678.48,0.25615609]
[1738243159256,1.09998263,680.07,678.47,1.53651994]
[1738243159458,1.09998263,680.07,678.48,0.25607426]
[1738243159655,0.27042456,680.06,678.48,0.25607426]
[1738243160860,1.09998263,680.07,678.47,1.53651994]
[1738243161065,0.27043146,680.06,678.49,0.29477221]
[1738243161365,0.27043146,680.06,678.5,0.2560648]
[1738243162469,0.27043146,680.06,678.52,0.29475918]
[1738243162669,0.27043927,680.05,678.53,0.25608238]
[1738243162968,0.27043927,680.04,678.55,0.29474614]
[1738243163268,0.27043927,680.03,678.56,0.25608238]
[1738243163464,0.27043927,680.06,678.58,0.29473311]
[1738243163662,0.27043927,680.05,678.59,0.25608238]
[1738243163867,1.09998263,679.97,678.61,0.29472008]
[1738243164362,0.27044152,679.96,678.62,0.25608782]
[1738243164565,1.09998263,679.97,678.62,0.25608782]
[1738243166169,1.09998263,679.97,678.64,0.29470706]
[1738243166373,1.09998263,679.97,678.65,0.25608782]
[1738243166565,1.09998263,679.97,678.66,0.29469837]
[1738243166865,1.09998263,679.97,678.67,0.25608782]
[1738243167066,1.09998263,679.97,678.68,0.29468969]
[1738243167266,1.09998263,679.97,678.69,0.25608782]
[1738243167469,1.09998263,679.97,678.68,0.29468969]
[1738243167665,1.09998263,679.97,678.69,0.25606987]
[1738243168069,1.09998263,679.95,678.69,0.25606987]
[1738243168770,1.09998263,679.95,678.7,0.294681]
[1738243169070,1.09998263,679.95,678.71,0.25606987]
[1738243169466,1.09998263,679.95,678.72,0.29467232]
[1738243169671,1.09998263,679.95,678.73,0.25606987]
[1738243170471,1.09998263,679.95,678.74,0.29466364]
[1738243170670,1.09998263,679.95,678.75,0.25606987]
[1738243170871,1.09998263,679.95,678.76,0.25605508]
[1738243171073,1.09998263,679.95,678.77,0.55070569]
[1738243171266,1.09998263,679.95,678.78,0.55070135]
[1738243171467,1.09998263,679.95,678.79,0.55069701]
[1738243171671,1.09998263,679.95,678.8,0.55069267]
[1738243171871,1.09998263,679.95,678.81,0.55068833]
[1738243172067,1.09998263,679.95,678.82,0.55068399]
[1738243172270,1.09998263,679.95,678.83,0.25605508]
[1738243172572,1.09998263,679.96,678.84,0.25605439]
[1738243172773,1.09998263,679.96,678.83,0.25605439]
[1738243172972,1.09998263,679.96,678.84,0.25605439]
[1738243173167,1.09998263,679.96,678.83,0.25605439]
[1738243173472,1.09998263,679.96,678.84,0.25605439]
[1738243173673,1.09998263,679.96,678.85,0.25605439]
[1738243173874,1.09998263,679.96,678.83,0.25605439]
[1738243174074,1.09998263,679.96,678.82,0.29462891]
[1738243174275,1.09998263,679.96,678.83,0.55069334]
[1738243174576,1.09998263,679.96,678.84,0.25606877]
[1738243175377,1.09998263,679.92,678.84,0.25606877]
[1738243177578,1.09998263,679.92,678.83,0.29462457]
[1738243177773,1.09998263,679.92,678.84,0.25604169]
[1738243178175,1.09998263,679.88,678.84,0.25604169]
[1738243179179,1.09998263,679.88,678.83,0.29462457]
[1738243179380,1.09998263,679.88,678.84,0.25593486]
[1738243180884,1.09998263,679.88,678.83,0.29462457]
[1738243181084,1.09998263,679.88,678.84,0.25589828]
[1738243181280,2.19996526,680.09,678.84,0.25589828]
[1738243181479,1.09998263,680.09,678.84,0.25589828]
[1738243181985,1.09998263,680.09,678.85,0.29461589]
[1738243182285,1.09998263,680.09,678.86,0.25589828]
[1738243182584,1.09998263,680.09,678.87,0.29460721]
[1738243182885,1.09998263,680.09,678.88,0.25589828]
[1738243183184,1.09998263,680.09,678.89,0.29459853]
[1738243184483,1.09998263,680.12,678.89,0.29459853]
[1738243187586,1.09998263,680.16,678.89,0.29459853]
[1738243191080,1.09998263,680.15,678.89,0.29459853]
[1738243192586,0.27043362,680.14,678.9,0.25606657]
[1738243192887,1.09998263,680.15,678.89,0.29459853]
[1738243193888,1.09998263,680.12,678.89,0.29459853]
[1738243199289,0.28840043,680.35,678.89,0.29459853]
[1738243199290,1.09998263,680.11,678.89,0.29459853]
[1738243201093,0.27044928,680.1,678.89,0.29459853]
[1738243203791,1.09998263,680.11,678.89,0.29459853]
[1738243203998,0.27045595,680.1,678.89,0.29459853]
[1738243204391,1.09998263,679.92,678.89,0.29459853]
[1738243205297,0.27047963,679.91,678.89,0.29459853]
[1738243206197,1.09998263,679.92,678.89,0.29459853]
[1738243207798,0.27049051,679.91,678.89,0.29459853]
[1738243208301,0.56655707,680.34,678.89,0.29459853]
[1738243208302,1.09998263,679.81,678.89,0.29459853]
[1738243209592,1.09998263,679.81,678.42,1.09477182]
[1738243209799,1.09998263,679.81,678.43,0.29479828]
[1738243211297,5.26172349,687.61,678.43,0.29479828]
[1738243211298,1.09998263,679.92,678.43,0.29479828]
[1738243211902,0.27057524,679.91,678.43,0.29479828]
[1738243213102,0.27057524,679.91,678.44,0.2565715]
[1738243214903,0.27057524,679.9,678.44,0.2565715]
[1738243215302,0.27057524,679.89,678.44,0.2565715]
[1738243215503,0.27057524,679.94,678.44,0.2565715]
[1738243215703,1.09998263,679.95,678.43,0.29479828]
[1738243216003,0.27055364,679.94,678.44,0.2565401]
[1738243217503,1.09998263,679.83,678.44,0.2565401]
[1738243217703,0.27055364,679.82,678.44,0.2565401]
[1738243218908,1.09998263,679.83,678.43,0.29479828]
[1738243219102,0.27056493,679.82,678.44,0.25665332]
[1738243221005,0.27056403,679.81,678.45,0.25666761]
[1738243221209,0.27056403,679.83,678.44,0.25666761]
[1738243221507,0.27056403,679.82,678.45,0.25666761]
[1738243221704,1.09998263,679.84,678.43,0.29479828]
[1738243222203,1.09998263,679.84,678.44,0.25667794]
[1738243222407,1.09998263,679.84,678.43,0.29479828]
[1738243222908,1.09998263,679.84,678.44,0.25666506]
[1738243223808,1.09998263,679.84,678.43,0.29479828]
[1738243224309,1.09998263,679.99,678.43,0.29479828]
[1738243224607,0.56469494,679.98,678.43,0.29479828]
[1738243224808,0.56469927,679.97,678.43,0.29479828]
[1738243225001,0.27056865,679.96,678.43,0.29479828]
[1738243225206,0.56470359,679.96,678.43,0.29479828]
[1738243225503,0.27056865,679.95,678.43,0.29479828]
[1738243225908,0.2941436,679.94,678.43,0.29479828]
[1738243226302,0.27059355,679.93,678.43,0.29479828]
[1738243226503,0.29415225,679.92,678.43,0.29479828]
[1738243226705,0.27059355,679.91,678.43,0.29479828]
[1738243226909,0.2941609,679.9,678.43,0.29479828]
[1738243227102,0.27059355,679.89,678.43,0.29479828]
[1738243227302,0.29416955,679.88,678.43,0.29479828]
[1738243227504,0.27059355,679.87,678.43,0.29479828]
[1738243227702,0.29417821,679.86,678.43,0.29479828]
[1738243227904,0.27059355,679.85,678.43,0.29479828]
[1738243228106,0.29418686,679.84,678.43,0.29479828]
[1738243228303,0.27059355,679.83,678.43,0.29479828]
[1738243228508,0.29419552,679.82,678.43,0.29479828]
[1738243228708,0.27059355,679.81,678.43,0.29479828]
[1738243228907,0.29420417,679.8,678.43,0.29479828]
[1738243229104,0.27059355,679.79,678.43,0.29479828]
[1738243229305,0.29421283,679.78,678.43,0.29479828]
[1738243229506,0.27061077,679.77,678.43,0.29479828]
[1738243229706,0.56482793,679.77,678.43,0.29479828]
[1738243229908,0.27061077,679.76,678.43,0.29479828]
[1738243231112,0.27061619,679.75,678.43,0.29479828]
[1738243231311,0.27061619,679.74,678.43,0.29479828]
[1738243231506,0.27061619,679.76,678.43,0.29479828]
[1738243231705,0.27061619,679.75,678.43,0.29479828]
[1738243232109,0.29422148,679.76,678.43,0.29479828]
[1738243232305,0.2706229,679.75,678.43,0.29479828]
[1738243234614,0.27060303,679.74,678.44,0.25677915]
[1738243234809,0.27060303,679.75,678.44,0.25677915]
[1738243235014,0.27060303,679.74,678.44,0.25677915]
[1738243235216,0.27060303,679.75,678.44,0.25677915]
[1738243235415,0.27060303,679.74,678.44,0.25677915]
[1738243235610,0.27060303,679.75,678.44,0.25677915]
[1738243235809,0.27060303,679.74,678.44,0.25677915]
[1738243236010,0.29422148,679.76,678.44,0.25677915]
[1738243236011,0.27060303,679.75,678.44,0.25677915]
[1738243236216,0.27060303,679.74,678.44,0.25677915]
[1738243236417,0.27060303,679.75,678.44,0.25677915]
[1738243236716,0.27060303,679.74,678.44,0.25677915]
[1738243236919,0.27060303,679.75,678.44,0.25677915]
[1738243237113,0.27060303,679.74,678.44,0.25677915]
[1738243237416,0.27060303,679.73,678.44,0.25677915]
[1738243237616,0.27060303,679.75,678.44,0.25677915]
[1738243237817,0.27060303,679.74,678.44,0.25677915]
[1738243238116,1.39420411,679.76,678.44,0.25677915]
[1738243238117,0.27060303,679.75,678.44,0.25677915]
[1738243238316,0.27060303,679.74,678.44,0.25677915]
[1738243238510,0.27060303,679.75,678.44,0.25677915]
[1738243238712,1.09998263,679.72,678.44,0.25677915]
[1738243238916,0.27060303,679.71,678.44,0.25677915]
[1738243239418,1.09998263,679.72,678.43,0.29479828]
[1738243239620,0.27060199,679.71,678.44,0.25656495]
[1738243241424,1.09998263,679.59,678.44,0.25656495]
[1738243241723,0.27060199,679.58,678.44,0.25656495]
[1738243243524,1.09998263,679.59,678.44,0.25656495]
[1738243244123,1.09998263,679.53,678.44,0.25656495]
[1738243248424,1.09998263,679.53,678.43,0.29479828]
[1738243249932,1.09998263,679.58,678.43,0.29479828]
[1738243251731,1.09998263,679.58,678.44,1.53753258]
[1738243254232,0.29422148,679.76,678.44,1.53753258]
[1738243254233,1.09998263,679.59,678.44,1.53753258]
[1738243256735,1.09998263,679.62,678.44,1.53753258]
[1738243259336,1.09998263,679.61,678.44,1.53753258]
[1738243262638,1.09998263,679.58,678.44,1.53753258]
[1738243265140,1.09998263,679.58,678.45,0.25682057]
[1738243265839,0.27060294,679.57,678.45,0.25682057]
[1738243266636,1.09998263,679.55,678.45,0.25682057]
[1738243266845,1.09998263,679.55,678.46,0.25689319]
[1738243267146,1.09998263,679.55,678.44,1.53753258]
[1738243268439,0.2706317,679.54,678.44,1.53753258]
[1738243268738,1.09998263,679.38,678.44,1.53753258]
[1738243272149,1.09998263,679.36,678.44,1.53753258]
[1738243275149,1.09998263,679.45,678.44,1.53753258]
[1738243277055,1.09998263,679.48,678.44,1.53753258]
[1738243280454,1.09998263,679.69,678.44,1.53753258]
[1738243282057,1.09998263,679.69,678.45,0.25687939]
[1738243283958,1.09998263,679.69,678.46,0.25683751]
[1738243284258,1.09998263,679.84,678.47,0.25683751]
[1738243284553,1.09998263,679.84,678.48,0.25683751]
[1738243284760,1.09998263,679.84,678.49,0.25683751]
[1738243285061,1.09998263,679.84,678.5,0.55160538]
[1738243285260,1.09998263,679.84,678.51,0.55160103]
[1738243285555,1.09998263,679.84,678.52,0.29475918]
[1738243285753,0.27053785,679.75,678.53,0.25678398]
[1738243286355,0.27053785,679.75,678.54,0.29475049]
[1738243286356,1.09998263,679.72,678.54,0.29475049]
[1738243286559,1.09998263,679.72,678.55,0.25678398]
[1738243287060,1.09998263,679.72,678.56,0.2947418]
[1738243287260,1.09998263,679.72,678.57,0.25678398]
[1738243287560,1.09998263,679.72,678.58,0.29473311]
[1738243287755,1.09998263,679.72,678.59,0.25678398]
[1738243288061,1.09998263,679.72,678.6,0.29472443]
[1738243289762,1.09998263,679.83,678.6,0.29472443]
[1738243292359,1.09998263,680.04,678.6,0.29472443]
[1738243292965,1.09998263,680.04,678.61,0.25667594]
[1738243293161,1.09998263,680.04,678.62,0.29471574]
[1738243293859,1.09998263,680.04,678.63,0.25668331]
[1738243294058,1.09998263,680.04,678.64,0.55140631]
[1738243294265,1.09998263,680.04,678.65,0.29470271]
[1738243295366,1.09998263,680.02,678.65,0.29470271]
[1738243298269,0.56663147,680.43,678.65,0.29470271]
[1738243298270,1.09998263,679.98,678.65,0.29470271]
[1738243300470,1.09998263,679.97,678.65,0.29470271]
[1738243304570,1.09998263,680.11,678.65,0.29470271]
[1738243307471,1.09998263,680.1,678.65,0.29470271]
[1738243310477,1.09998263,680.06,678.65,0.29470271]
[1738243310869,1.09998263,680.06,678.66,0.25664516]
[1738243311676,0.27047396,680.05,678.66,0.25664516]
[1738243311977,1.09998263,680.06,678.67,0.29469403]
[1738243312277,0.27047314,680.05,678.68,0.25664516]
[1738243312477,0.27047314,680.05,678.69,0.29468534]
[1738243313978,1.09998263,680.0,678.7,0.25662535]
[1738243314177,0.27047314,679.99,678.7,0.25662535]
[1738243314370,1.09998263,680.0,678.71,0.29467666]
[1738243314769,0.27048974,679.99,678.71,0.29467666]
[1738243315478,0.27048974,679.99,678.72,0.25663474]
[1738243315673,0.27048974,679.99,678.72,0.55130706]
[1738243315871,1.09998263,680.0,678.72,0.29467232]
[1738243316275,0.27049832,679.99,678.72,0.29467232]
[1738243316581,1.09998263,679.88,678.72,0.29467232]
[1738243318579,1.09998263,679.86,678.72,0.29467232]
[1738243321480,1.09998263,679.83,678.72,0.29467232]
[1738243323883,1.09998263,679.81,678.72,0.29467232]
[1738243325884,1.09998263,679.81,678.73,0.25668909]
[1738243327184,1.09998263,679.76,678.73,0.25668909]
[1738243329291,1.09998263,679.68,678.73,0.25668909]
[1738243330286,1.09998263,679.68,678.72,0.29467232]
[1738243332987,4.41699209,684.73,678.72,0.29467232]
[1738243332988,1.09998263,679.61,678.72,0.29467232]
[1738243335990,1.09998263,679.62,678.72,0.29467232]
[1738243339087,1.09998263,679.72,678.73,0.25667981]
[1738243339293,0.27054032,679.71,678.73,0.25667981]
[1738243339592,0.27054032,679.71,678.72,0.29467232]
[1738243342495,1.09998263,679.67,678.73,0.25673382]
[1738243342696,0.27054032,679.66,678.73,0.25673382]
[1738243344294,1.09998263,679.67,678.73,0.25673382]
[1738243344597,0.27054575,679.66,678.73,0.25673382]
[1738243344794,1.09998263,679.67,678.72,0.29467232]
[1738243345200,1.09998263,679.66,678.72,0.29467232]
[1738243347501,4.41699209,684.6,678.72,0.29467232]
[1738243347502,1.09998263,679.74,678.72,0.29467232]
[1738243348297,1.09998263,679.74,678.73,0.25661945]
[1738243350204,1.09998263,679.83,678.73,0.25661945]
[1738243350804,1.09998263,679.83,678.72,0.29467232]
[1738243353308,0.27053393,679.82,678.72,0.29467232]
[1738243354106,1.09998263,679.83,678.72,0.29467232]
[1738243354300,0.27054142,679.81,678.72,0.29467232]
[1738243354501,0.27054142,679.8,678.72,0.29467232]
[1738243354702,0.27054142,679.82,678.72,0.29467232]
[1738243354901,1.09998263,679.83,678.72,0.29467232]
[1738243355105,0.27053487,679.82,678.72,0.29467232]
[1738243356001,1.09998263,679.74,678.72,0.29467232]
[1738243358404,1.09998263,679.75,678.73,0.25656251]
[1738243359405,1.09998263,679.75,678.74,0.25654633]
[1738243359607,1.09998263,679.75,678.75,0.25654633]
[1738243359804,1.09998263,679.75,678.73,0.25654633]
[1738243360004,1.09998263,679.75,678.74,0.25654633]
[1738243360205,1.09998263,679.75,678.75,0.25654633]
[1738243360406,1.09998263,679.75,678.73,0.25654633]
[1738243360605,1.09998263,679.75,678.74,0.25654633]
[1738243360801,1.09998263,679.75,678.72,0.29467232]
[1738243360802,1.09998263,679.75,678.73,0.25654633]
[1738243361006,1.09998263,679.75,678.74,0.25654633]
[1738243361207,1.09998263,679.75,678.75,0.25654633]
[1738243361404,1.09998263,679.8,678.76,0.25654633]
[1738243361608,1.09998263,679.8,678.73,0.25654633]
[1738243361807,1.09998263,679.8,678.74,0.25654633]